[Event "Titled Tuesday Blitz May 9 Early 2023"]
[White "Sousa, Andre Ventura"]
[Black "Rakotomaharo, Fy Antenaina"]
[WhiteFideId "1917617"]
[BlackFideId "13100050"]
[WhiteElo "2333"]
[BlackElo "2427"]
[Result "0-1"]
[Round "11"]
[TimeControl "180+2"]
[Date "2023.05.09"]
[WhiteClock "0:00:00"]
[BlackClock "0:00:07"]

1. e4 {[%clk 0:03:00]}  c5 {[%clk 0:02:56]} 2. Nf3 {[%clk 0:03:01]}  d6 {[%clk 0:02:55]} 3. Bb5+ {[%clk 0:03:00]}  Nd7 {[%clk 0:02:55]} 4. d4 {[%clk 0:02:59]}  cxd4 {[%clk 0:02:56]} 5. Nxd4 {[%clk 0:03:00]}  Nf6 {[%clk 0:02:54]} 6. Bd3 {[%clk 0:02:58]}  g6 {[%clk 0:02:51]} 7. c4 {[%clk 0:02:57]}  Bg7 {[%clk 0:02:51]} 8. Nc3 {[%clk 0:02:57]}  O-O {[%clk 0:02:51]} 9. O-O {[%clk 0:02:56]}  a6 {[%clk 0:02:51]} 10. a4 {[%clk 0:02:50]}  Ne5 {[%clk 0:02:45]} 11. Be2 {[%clk 0:02:49]}  Bd7 {[%clk 0:02:45]} 12. f4 {[%clk 0:02:38]}  Nc6 {[%clk 0:02:44]} 13. Nc2 {[%clk 0:02:39]}  Rc8 {[%clk 0:02:43]} 14. Kh1 {[%clk 0:02:34]}  Na5 {[%clk 0:02:42]} 15. Ne3 {[%clk 0:02:32]}  Be6 {[%clk 0:02:37]} 16. b3 {[%clk 0:01:47]}  Nxe4 {[%clk 0:02:32]} 17. Nxe4 {[%clk 0:01:48]}  Bxa1 {[%clk 0:02:31]} 18. f5 {[%clk 0:01:49]}  gxf5 {[%clk 0:01:59]} 19. Nxf5 {[%clk 0:01:50]}  Bxf5 {[%clk 0:01:33]} 20. Rxf5 {[%clk 0:01:51]}  Nc6 {[%clk 0:01:33]} 21. Bh6 {[%clk 0:01:44]}  Be5 {[%clk 0:01:25]} 22. Bh5 {[%clk 0:01:36]}  Kh8 {[%clk 0:01:11]} 23. Ng5 {[%clk 0:01:21]}  Bf6 {[%clk 0:01:00]} 24. Nxf7+ {[%clk 0:00:28]}  Rxf7 {[%clk 0:00:59]} 25. Bxf7 {[%clk 0:00:29]}  Qd7 {[%clk 0:00:57]} 26. Qg4 {[%clk 0:00:28]}  Ne5 {[%clk 0:00:48]} 27. Qh5 {[%clk 0:00:20]}  Nxf7 {[%clk 0:00:41]} 28. Qxf7 {[%clk 0:00:21]}  Qxf5 {[%clk 0:00:28]} 29. Bg7+ {[%clk 0:00:22]}  Bxg7 {[%clk 0:00:29]} 30. Qxf5 {[%clk 0:00:23]}  Rf8 {[%clk 0:00:29]} 31. Qd3 {[%clk 0:00:22]}  a5 {[%clk 0:00:27]} 32. g3 {[%clk 0:00:22]}  Be5 {[%clk 0:00:21]} 33. Kg2 {[%clk 0:00:22]}  Kg7 {[%clk 0:00:18]} 34. Qe3 {[%clk 0:00:21]}  Rf6 {[%clk 0:00:17]} 35. Qb6 {[%clk 0:00:21]}  Bc3 {[%clk 0:00:15]} 36. Qxb7 {[%clk 0:00:20]}  Bb4 {[%clk 0:00:15]} 37. Qxe7+ {[%clk 0:00:21]}  Kg6 {[%clk 0:00:16]} 38. Qe4+ {[%clk 0:00:21]}  Kg7 {[%clk 0:00:16]} 39. h4 {[%clk 0:00:22]}  h6 {[%clk 0:00:15]} 40. Kh3 {[%clk 0:00:23]}  Kf7 {[%clk 0:00:15]} 41. Qd5+ {[%clk 0:00:23]}  Ke7 {[%clk 0:00:16]} 42. Kg4 {[%clk 0:00:23]}  Re6 {[%clk 0:00:15]} 43. Qb7+ {[%clk 0:00:21]}  Kf6 {[%clk 0:00:15]} 44. Qh7 {[%clk 0:00:22]}  Ke5 {[%clk 0:00:15]} 45. Qd3 {[%clk 0:00:22]}  Kf6 {[%clk 0:00:15]} 46. Kf4 {[%clk 0:00:21]}  Ke7 {[%clk 0:00:14]} 47. Qh7+ {[%clk 0:00:21]}  Kd8 {[%clk 0:00:14]} 48. g4 {[%clk 0:00:21]}  Re5 {[%clk 0:00:10]} 49. Kf3 {[%clk 0:00:19]}  Bd2 {[%clk 0:00:09]} 50. Qg8+ {[%clk 0:00:17]}  Kd7 {[%clk 0:00:09]} 51. Qf7+ {[%clk 0:00:17]}  Kc6 {[%clk 0:00:09]} 52. Qa7 {[%clk 0:00:16]}  Bb4 {[%clk 0:00:08]} 53. Qa8+ {[%clk 0:00:14]}  Kc7 {[%clk 0:00:08]} 54. Qf8 {[%clk 0:00:14]}  Bd2 {[%clk 0:00:07]} 55. Qg7+ {[%clk 0:00:15]}  Kc6 {[%clk 0:00:08]} 56. Qf6 {[%clk 0:00:15]}  Kc7 {[%clk 0:00:07]} 57. Qf7+ {[%clk 0:00:11]}  Kc6 {[%clk 0:00:07]} 58. Qg8 {[%clk 0:00:11]}  Kc7 {[%clk 0:00:07]} 59. Qa8 {[%clk 0:00:11]}  Re3+ {[%clk 0:00:07]} 60. Kf2 {[%clk 0:00:11]}  Re5 {[%clk 0:00:06]} 61. Qa7+ {[%clk 0:00:12]}  Kc6 {[%clk 0:00:06]} 62. Qd4 {[%clk 0:00:12]}  Bb4 {[%clk 0:00:05]} 63. Qf4 {[%clk 0:00:11]}  Bc5+ {[%clk 0:00:04]} 64. Kf3 {[%clk 0:00:12]}  Bb4 {[%clk 0:00:04]} 65. g5 {[%clk 0:00:12]}  hxg5 {[%clk 0:00:04]} 66. hxg5 {[%clk 0:00:13]}  Re1 {[%clk 0:00:04]} 67. Qg4 {[%clk 0:00:11]}  Bc5 {[%clk 0:00:03]} 68. g6 {[%clk 0:00:11]}  Rf1+ {[%clk 0:00:03]} 69. Ke2 {[%clk 0:00:11]}  Rg1 {[%clk 0:00:02]} 70. Qe4+ {[%clk 0:00:11]}  Kc7 {[%clk 0:00:02]} 71. Qe7+ {[%clk 0:00:11]}  Kc6 {[%clk 0:00:02]} 72. Qf7 {[%clk 0:00:11]}  Rg2+ {[%clk 0:00:02]} 73. Kd3 {[%clk 0:00:11]}  Rg3+ {[%clk 0:00:03]} 74. Ke4 {[%clk 0:00:12]}  Re3+ {[%clk 0:00:03]} 75. Kf5 {[%clk 0:00:12]}  Rf3+ {[%clk 0:00:03]} 76. Ke6 {[%clk 0:00:12]}  Rxf7 {[%clk 0:00:04]} 77. gxf7 {[%clk 0:00:11]}  d5 {[%clk 0:00:04]} 78. cxd5+ {[%clk 0:00:12]}  Kc7 {[%clk 0:00:04]} 79. Kf6 {[%clk 0:00:12]}  Bf8 {[%clk 0:00:04]} 80. Ke5 {[%clk 0:00:13]}  Kd7 {[%clk 0:00:04]} 81. Kf5 {[%clk 0:00:11]}  Kd6 {[%clk 0:00:04]} 82. Ke4 {[%clk 0:00:09]}  Bg7 {[%clk 0:00:05]} 83. f8=Q+ {[%clk 0:00:07]}  Bxf8 {[%clk 0:00:05]} 84. Kd4 {[%clk 0:00:08]}  Bh6 {[%clk 0:00:05]} 85. Kc4 {[%clk 0:00:08]}  Bd2 {[%clk 0:00:05]} 86. Kd4 {[%clk 0:00:09]}  Bb4 {[%clk 0:00:05]} 87. Kc4 {[%clk 0:00:09]}  Ke5 {[%clk 0:00:05]} 88. Kd3 {[%clk 0:00:06]}  Kxd5 {[%clk 0:00:05]} 89. Kc2 {[%clk 0:00:07]}  Kd4 {[%clk 0:00:06]} 90. Kc1 {[%clk 0:00:08]}  Kc3 {[%clk 0:00:06]} 91. Kb1 {[%clk 0:00:00]}  Kxb3 {[%clk 0:00:07]} 0-1


[Site "https://www.chess.com"]

[Event "Titled Tuesday Blitz May 9 Early 2023"]
[White "HamedWafa4"]
[Black "Starozhilov, Leonid"]
[BlackFideId "14106752"]
[WhiteElo "2562"]
[BlackElo "2352"]
[Result "1-0"]
[Round "11"]
[TimeControl "180+2"]
[Date "2023.05.09"]
[WhiteClock "0:00:31"]
[BlackClock "0:00:00"]

1. e4 {[%clk 0:03:00]}  g6 {[%clk 0:02:58]} 2. d4 {[%clk 0:03:00]}  Bg7 {[%clk 0:02:59]} 3. Nc3 {[%clk 0:02:57]}  d6 {[%clk 0:02:59]} 4. f4 {[%clk 0:02:47]}  Nc6 {[%clk 0:02:54]} 5. Be3 {[%clk 0:02:45]}  Nf6 {[%clk 0:02:53]} 6. Nf3 {[%clk 0:02:40]}  Bg4 {[%clk 0:02:51]} 7. h3 {[%clk 0:02:37]}  Bxf3 {[%clk 0:02:51]} 8. Qxf3 {[%clk 0:02:38]}  e5 {[%clk 0:02:52]} 9. fxe5 {[%clk 0:02:14]}  dxe5 {[%clk 0:02:52]} 10. d5 {[%clk 0:02:15]}  Nd4 {[%clk 0:02:52]} 11. Qf2 {[%clk 0:02:15]}  c6 {[%clk 0:02:41]} 12. O-O-O {[%clk 0:02:07]}  cxd5 {[%clk 0:02:19]} 13. Bxd4 {[%clk 0:02:04]}  exd4 {[%clk 0:02:20]} 14. Bb5+ {[%clk 0:02:05]}  Kf8 {[%clk 0:02:20]} 15. Qxd4 {[%clk 0:01:53]}  Nxe4 {[%clk 0:01:50]} 16. Qb4+ {[%clk 0:01:51]}  Qd6 {[%clk 0:01:47]} 17. Nxd5 {[%clk 0:01:44]}  Qxb4 {[%clk 0:01:43]} 18. Nxb4 {[%clk 0:01:44]}  Nf2 {[%clk 0:01:42]} 19. Rhf1 {[%clk 0:01:40]}  Nxd1 {[%clk 0:01:42]} 20. Rxd1 {[%clk 0:01:41]}  Bh6+ {[%clk 0:01:39]} 21. Kb1 {[%clk 0:01:40]}  Kg7 {[%clk 0:01:40]} 22. Nd5 {[%clk 0:01:36]}  Rad8 {[%clk 0:01:31]} 23. c4 {[%clk 0:01:35]}  a6 {[%clk 0:01:31]} 24. Ba4 {[%clk 0:01:35]}  Rd6 {[%clk 0:01:24]} 25. Re1 {[%clk 0:01:23]}  b5 {[%clk 0:01:22]} 26. Bb3 {[%clk 0:01:22]}  Rc8 {[%clk 0:01:10]} 27. cxb5 {[%clk 0:01:09]}  axb5 {[%clk 0:01:11]} 28. a3 {[%clk 0:01:00]}  Rc5 {[%clk 0:00:50]} 29. Nc3 {[%clk 0:00:47]}  Bd2 {[%clk 0:00:27]} 30. Rd1 {[%clk 0:00:46]}  Bf4 {[%clk 0:00:23]} 31. Rf1 {[%clk 0:00:43]}  Rxc3 {[%clk 0:00:12]} 32. bxc3 {[%clk 0:00:41]}  g5 {[%clk 0:00:11]} 33. Rd1 {[%clk 0:00:39]}  Rc6 {[%clk 0:00:07]} 34. Kc2 {[%clk 0:00:35]}  Be5 {[%clk 0:00:07]} 35. Rd3 {[%clk 0:00:35]}  Kg6 {[%clk 0:00:06]} 36. Bd5 {[%clk 0:00:33]}  Rc5 {[%clk 0:00:05]} 37. g4 {[%clk 0:00:33]}  h5 {[%clk 0:00:04]} 38. Be4+ {[%clk 0:00:33]}  Kh6 {[%clk 0:00:04]} 39. Bf5 {[%clk 0:00:31]}  h4 {[%clk 0:00:00]} 40. Kb3 {[%clk 0:00:31]} 1-0


[Site "https://www.chess.com"]

[Event "Titled Tuesday Blitz May 9 Early 2023"]
[White "Erzhanov, Arman"]
[Black "Leiva, Gianmarco"]
[WhiteFideId "4138821"]
[BlackFideId "3804399"]
[WhiteElo "2138"]
[BlackElo "2365"]
[Result "0-1"]
[Round "11"]
[TimeControl "180+2"]
[Date "2023.05.09"]
[WhiteClock "0:00:11"]
[BlackClock "0:00:02"]

1. e4 {[%clk 0:02:59]}  c5 {[%clk 0:02:56]} 2. Nf3 {[%clk 0:02:59]}  d6 {[%clk 0:02:56]} 3. d4 {[%clk 0:02:58]}  cxd4 {[%clk 0:02:56]} 4. Qxd4 {[%clk 0:02:59]}  Bd7 {[%clk 0:02:10]} 5. Be2 {[%clk 0:02:57]}  Nf6 {[%clk 0:02:09]} 6. h3 {[%clk 0:02:57]}  g6 {[%clk 0:02:09]} 7. O-O {[%clk 0:02:57]}  Bg7 {[%clk 0:02:10]} 8. Qe3 {[%clk 0:02:55]}  Bc6 {[%clk 0:02:08]} 9. Bd3 {[%clk 0:02:52]}  Nbd7 {[%clk 0:02:04]} 10. c4 {[%clk 0:02:52]}  Nc5 {[%clk 0:02:04]} 11. Nc3 {[%clk 0:02:51]}  Nxd3 {[%clk 0:02:02]} 12. Qxd3 {[%clk 0:02:51]}  O-O {[%clk 0:02:03]} 13. Rb1 {[%clk 0:02:51]}  a6 {[%clk 0:02:02]} 14. b3 {[%clk 0:02:51]}  Nd7 {[%clk 0:02:01]} 15. Bb2 {[%clk 0:02:51]}  Nc5 {[%clk 0:02:02]} 16. Qe3 {[%clk 0:02:47]}  Bd7 {[%clk 0:01:51]} 17. Rfe1 {[%clk 0:02:44]}  b5 {[%clk 0:01:52]} 18. Nd2 {[%clk 0:02:40]}  bxc4 {[%clk 0:01:26]} 19. Nxc4 {[%clk 0:02:39]}  a5 {[%clk 0:01:23]} 20. Nd5 {[%clk 0:02:34]}  Bxb2 {[%clk 0:01:13]} 21. Rxb2 {[%clk 0:02:34]}  Be6 {[%clk 0:01:09]} 22. Qh6 {[%clk 0:02:29]}  Nd3 {[%clk 0:00:58]} 23. Rbe2 {[%clk 0:02:25]}  Nxe1 {[%clk 0:00:58]} 24. Rxe1 {[%clk 0:02:26]}  f6 {[%clk 0:00:45]} 25. h4 {[%clk 0:02:22]}  Rf7 {[%clk 0:00:44]} 26. Nf4 {[%clk 0:02:21]}  Bxc4 {[%clk 0:00:43]} 27. bxc4 {[%clk 0:02:21]}  Qf8 {[%clk 0:00:43]} 28. Qxf8+ {[%clk 0:02:20]}  Rfxf8 {[%clk 0:00:44]} 29. Nd5 {[%clk 0:02:19]}  Kf7 {[%clk 0:00:44]} 30. h5 {[%clk 0:01:47]}  e6 {[%clk 0:00:41]} 31. hxg6+ {[%clk 0:01:47]}  hxg6 {[%clk 0:00:41]} 32. Ne3 {[%clk 0:01:39]}  Rab8 {[%clk 0:00:41]} 33. Rd1 {[%clk 0:01:38]}  Ke7 {[%clk 0:00:37]} 34. Rd2 {[%clk 0:01:38]}  Rb1+ {[%clk 0:00:37]} 35. Kh2 {[%clk 0:01:38]}  Rfb8 {[%clk 0:00:38]} 36. Rd3 {[%clk 0:01:35]}  Rc8 {[%clk 0:00:33]} 37. Ra3 {[%clk 0:01:34]}  Rc5 {[%clk 0:00:33]} 38. Kg3 {[%clk 0:01:34]}  f5 {[%clk 0:00:33]} 39. f3 {[%clk 0:01:29]}  Kf6 {[%clk 0:00:32]} 40. Ra4 {[%clk 0:01:22]}  Rc1 {[%clk 0:00:20]} 41. Kf2 {[%clk 0:01:18]}  Rc3 {[%clk 0:00:19]} 42. Ke2 {[%clk 0:01:16]}  f4 {[%clk 0:00:17]} 43. Ng4+ {[%clk 0:01:11]}  Kg5 {[%clk 0:00:18]} 44. Nf2 {[%clk 0:01:04]}  e5 {[%clk 0:00:12]} 45. Nd3 {[%clk 0:00:35]}  R5xc4 {[%clk 0:00:12]} 46. Rxa5 {[%clk 0:00:34]}  Rd4 {[%clk 0:00:12]} 47. Nf2 {[%clk 0:00:22]}  Re3+ {[%clk 0:00:12]} 48. Kf1 {[%clk 0:00:21]}  Rc4 {[%clk 0:00:05]} 49. Rd5 {[%clk 0:00:21]}  Rc1+ {[%clk 0:00:05]} 50. Nd1 {[%clk 0:00:22]}  Rc2 {[%clk 0:00:02]} 51. Nxe3 {[%clk 0:00:20]}  fxe3 {[%clk 0:00:02]} 52. Rxd6 {[%clk 0:00:20]}  Rf2+ {[%clk 0:00:03]} 53. Ke1 {[%clk 0:00:19]}  Rxa2 {[%clk 0:00:03]} 54. Rd3 {[%clk 0:00:17]}  Kf4 {[%clk 0:00:03]} 55. Rd6 {[%clk 0:00:17]}  Ra1+ {[%clk 0:00:02]} 56. Ke2 {[%clk 0:00:17]}  Ra2+ {[%clk 0:00:03]} 57. Ke1 {[%clk 0:00:17]}  Rxg2 {[%clk 0:00:03]} 58. Rf6+ {[%clk 0:00:17]}  Kg5 {[%clk 0:00:02]} 59. Re6 {[%clk 0:00:17]}  Kf4 {[%clk 0:00:02]} 60. Rf6+ {[%clk 0:00:18]}  Kg5 {[%clk 0:00:02]} 61. Re6 {[%clk 0:00:18]}  Ra2 {[%clk 0:00:02]} 62. Rxe5+ {[%clk 0:00:17]}  Kf4 {[%clk 0:00:02]} 63. Re6 {[%clk 0:00:18]}  Kxf3 {[%clk 0:00:01]} 64. Rf6+ {[%clk 0:00:17]}  Kxe4 {[%clk 0:00:01]} 65. Rxg6 {[%clk 0:00:17]}  Ra1+ {[%clk 0:00:01]} 66. Ke2 {[%clk 0:00:17]}  Ra2+ {[%clk 0:00:02]} 67. Ke1 {[%clk 0:00:18]}  Ra5 {[%clk 0:00:03]} 68. Rb6 {[%clk 0:00:16]}  Rf5 {[%clk 0:00:02]} 69. Rb4+ {[%clk 0:00:15]}  Kf3 {[%clk 0:00:02]} 70. Rb8 {[%clk 0:00:14]}  Rf7 {[%clk 0:00:01]} 71. Rc8 {[%clk 0:00:13]}  Re7 {[%clk 0:00:02]} 72. Rf8+ {[%clk 0:00:13]}  Ke4 {[%clk 0:00:02]} 73. Ke2 {[%clk 0:00:14]}  Re6 {[%clk 0:00:02]} 74. Rh8 {[%clk 0:00:14]}  Rf6 {[%clk 0:00:02]} 75. Rh4+ {[%clk 0:00:13]}  Rf4 {[%clk 0:00:02]} 76. Rh2 {[%clk 0:00:11]}  Rg4 {[%clk 0:00:02]} 77. Ke1 {[%clk 0:00:10]}  Kd3 {[%clk 0:00:03]} 78. Rh1 {[%clk 0:00:09]}  Ra4 {[%clk 0:00:03]} 79. Kf1 {[%clk 0:00:05]}  Ra1+ {[%clk 0:00:04]} 80. Kg2 {[%clk 0:00:06]}  Ra7 {[%clk 0:00:04]} 81. Rh8 {[%clk 0:00:04]}  Ke2 {[%clk 0:00:03]} 82. Re8 {[%clk 0:00:03]}  Rg7+ {[%clk 0:00:04]} 83. Kh3 {[%clk 0:00:03]}  Kf2 {[%clk 0:00:04]} 84. Rf8+ {[%clk 0:00:03]}  Ke1 {[%clk 0:00:05]} 85. Re8 {[%clk 0:00:03]}  e2 {[%clk 0:00:05]} 86. Re5 {[%clk 0:00:04]}  Rg1 {[%clk 0:00:05]} 87. Kh2 {[%clk 0:00:03]}  Rf1 {[%clk 0:00:05]} 88. Kg2 {[%clk 0:00:03]}  Kd1 {[%clk 0:00:06]} 89. Rd5+ {[%clk 0:00:03]}  Kc2 {[%clk 0:00:06]} 90. Rc5+ {[%clk 0:00:03]}  Kb1 {[%clk 0:00:06]} 91. Rb5+ {[%clk 0:00:03]}  Ka2 {[%clk 0:00:07]} 92. Ra5+ {[%clk 0:00:04]}  Kb2 {[%clk 0:00:07]} 93. Rb5+ {[%clk 0:00:04]}  Ka3 {[%clk 0:00:07]} 94. Rf5 {[%clk 0:00:04]}  e1=Q {[%clk 0:00:06]} 95. Rxf1 {[%clk 0:00:04]}  Qe2+ {[%clk 0:00:06]} 96. Rf2 {[%clk 0:00:05]}  Qg4+ {[%clk 0:00:06]} 97. Kf1 {[%clk 0:00:05]}  Kb3 {[%clk 0:00:06]} 98. Rg2 {[%clk 0:00:06]}  Qf3+ {[%clk 0:00:06]} 99. Rf2 {[%clk 0:00:07]}  Qh3+ {[%clk 0:00:06]} 100. Ke1 {[%clk 0:00:08]}  Kc4 {[%clk 0:00:05]} 101. Re2 {[%clk 0:00:09]}  Kd3 {[%clk 0:00:04]} 102. Rd2+ {[%clk 0:00:09]}  Kc3 {[%clk 0:00:03]} 103. Re2 {[%clk 0:00:10]}  Qg3+ {[%clk 0:00:03]} 104. Kf1 {[%clk 0:00:09]}  Kd3 {[%clk 0:00:02]} 105. Rg2 {[%clk 0:00:10]}  Qf3+ {[%clk 0:00:02]} 106. Rf2 {[%clk 0:00:11]}  Qh1# {[%clk 0:00:02]} 0-1


[Site "https://www.chess.com"]

[Event "Titled Tuesday Blitz May 9 Early 2023"]
[White "Baghdasaryan, Vahe"]
[Black "Srihari L R"]
[WhiteFideId "13303139"]
[BlackFideId "46617116"]
[WhiteElo "2216"]
[BlackElo "2334"]
[Result "0-1"]
[Round "11"]
[TimeControl "180+2"]
[Date "2023.05.09"]
[WhiteClock "0:00:00"]
[BlackClock "0:00:23"]

1. d4 {[%clk 0:02:51]}  Nf6 {[%clk 0:02:53]} 2. c4 {[%clk 0:02:50]}  e6 {[%clk 0:02:53]} 3. Nf3 {[%clk 0:02:49]}  d5 {[%clk 0:02:45]} 4. g3 {[%clk 0:02:48]}  dxc4 {[%clk 0:02:45]} 5. Bg2 {[%clk 0:02:46]}  Bd7 {[%clk 0:02:46]} 6. Ne5 {[%clk 0:02:30]}  Bc6 {[%clk 0:02:45]} 7. Nxc6 {[%clk 0:02:28]}  Nxc6 {[%clk 0:02:46]} 8. Bxc6+ {[%clk 0:02:24]}  bxc6 {[%clk 0:02:47]} 9. Qa4 {[%clk 0:02:15]}  Qd5 {[%clk 0:02:39]} 10. O-O {[%clk 0:02:14]}  Qb5 {[%clk 0:02:30]} 11. Qc2 {[%clk 0:02:14]}  Nd5 {[%clk 0:02:29]} 12. a3 {[%clk 0:02:07]}  Rb8 {[%clk 0:02:26]} 13. e4 {[%clk 0:02:06]}  Nb6 {[%clk 0:02:25]} 14. Nc3 {[%clk 0:02:03]}  Qb3 {[%clk 0:02:22]} 15. Qe2 {[%clk 0:02:04]}  Bd6 {[%clk 0:02:18]} 16. Bg5 {[%clk 0:02:01]}  h6 {[%clk 0:02:16]} 17. Be3 {[%clk 0:01:41]}  O-O {[%clk 0:02:16]} 18. e5 {[%clk 0:01:36]}  Be7 {[%clk 0:02:13]} 19. Qg4 {[%clk 0:01:34]}  Kh8 {[%clk 0:02:06]} 20. Ne4 {[%clk 0:01:30]}  Nd5 {[%clk 0:02:01]} 21. Rae1 {[%clk 0:01:25]}  Qxb2 {[%clk 0:01:57]} 22. Qh5 {[%clk 0:00:37]}  Kh7 {[%clk 0:01:37]} 23. Bg5 {[%clk 0:00:32]}  Bxg5 {[%clk 0:01:32]} 24. Nxg5+ {[%clk 0:00:31]}  Kg8 {[%clk 0:01:33]} 25. Re4 {[%clk 0:00:14]}  Qc2 {[%clk 0:01:07]} 26. Rh4 {[%clk 0:00:08]}  Rb1 {[%clk 0:01:01]} 27. Rg4 {[%clk 0:00:05]}  Rxf1+ {[%clk 0:00:56]} 28. Kxf1 {[%clk 0:00:05]}  c3 {[%clk 0:00:55]} 29. Ne4 {[%clk 0:00:02]}  Qd1+ {[%clk 0:00:46]} 30. Kg2 {[%clk 0:00:02]}  c2 {[%clk 0:00:25]} 31. Nf6+ {[%clk 0:00:02]}  Kh8 {[%clk 0:00:24]} 32. Rxg7 {[%clk 0:00:00]}  Kxg7 {[%clk 0:00:23]} 0-1


[Site "https://www.chess.com"]

[Event "Titled Tuesday Blitz May 9 Early 2023"]
[White "Antal, Gergely"]
[Black "Korelskiy, Egor"]
[WhiteFideId "717312"]
[BlackFideId "34329064"]
[WhiteElo "2471"]
[BlackElo "2156"]
[Result "1-0"]
[Round "11"]
[TimeControl "180+2"]
[Date "2023.05.09"]
[WhiteClock "0:00:02"]
[BlackClock "0:00:00"]

1. Nc3 {[%clk 0:03:00]}  d5 {[%clk 0:02:59]} 2. e4 {[%clk 0:03:00]}  d4 {[%clk 0:02:38]} 3. Nce2 {[%clk 0:03:00]}  e5 {[%clk 0:02:38]} 4. c3 {[%clk 0:03:00]}  dxc3 {[%clk 0:02:29]} 5. bxc3 {[%clk 0:02:59]}  Nf6 {[%clk 0:02:29]} 6. Qc2 {[%clk 0:02:57]}  b6 {[%clk 0:02:25]} 7. Nf3 {[%clk 0:02:53]}  Bd6 {[%clk 0:02:21]} 8. d4 {[%clk 0:02:50]}  Nbd7 {[%clk 0:02:21]} 9. Ng3 {[%clk 0:02:43]}  O-O {[%clk 0:02:19]} 10. Bd3 {[%clk 0:02:40]}  Bb7 {[%clk 0:02:14]} 11. O-O {[%clk 0:02:39]}  c5 {[%clk 0:02:14]} 12. Nf5 {[%clk 0:02:30]}  Bc7 {[%clk 0:02:10]} 13. d5 {[%clk 0:02:17]}  g6 {[%clk 0:02:08]} 14. d6 {[%clk 0:02:15]}  gxf5 {[%clk 0:02:07]} 15. dxc7 {[%clk 0:02:15]}  Qxc7 {[%clk 0:02:07]} 16. Nd2 {[%clk 0:01:56]}  c4 {[%clk 0:01:57]} 17. Nxc4 {[%clk 0:01:52]}  Bxe4 {[%clk 0:01:54]} 18. Ne3 {[%clk 0:01:44]}  Nc5 {[%clk 0:01:41]} 19. Bxe4 {[%clk 0:01:42]}  Ncxe4 {[%clk 0:01:29]} 20. Nxf5 {[%clk 0:01:41]}  Qxc3 {[%clk 0:01:27]} 21. Qe2 {[%clk 0:00:21]}  Qxa1 {[%clk 0:01:10]} 22. Bb2 {[%clk 0:00:21]}  Qxa2 {[%clk 0:01:04]} 23. f3 {[%clk 0:00:20]}  Qa4 {[%clk 0:00:15]} 24. fxe4 {[%clk 0:00:19]}  Qxe4 {[%clk 0:00:15]} 25. Qf2 {[%clk 0:00:09]}  Ng4 {[%clk 0:00:13]} 26. Qg3 {[%clk 0:00:07]}  h5 {[%clk 0:00:09]} 27. h3 {[%clk 0:00:06]}  Kh7 {[%clk 0:00:06]} 28. hxg4 {[%clk 0:00:05]}  Qxg4 {[%clk 0:00:05]} 29. Qxe5 {[%clk 0:00:04]}  Qg6 {[%clk 0:00:04]} 30. Ne7 {[%clk 0:00:02]}  Qg4 {[%clk 0:00:00]} 31. Rf4 {[%clk 0:00:02]} 1-0


[Site "https://www.chess.com"]

[Event "Titled Tuesday Blitz May 9 Early 2023"]
[White "Hossain, Enamul"]
[Black "Yaniuk, Volodymyr"]
[WhiteFideId "10200649"]
[BlackFideId "14133083"]
[WhiteElo "2433"]
[BlackElo "2141"]
[Result "1-0"]
[Round "11"]
[TimeControl "180+2"]
[Date "2023.05.09"]
[WhiteClock "0:00:25"]
[BlackClock "0:00:24"]

1. e4 {[%clk 0:03:00]}  e5 {[%clk 0:03:00]} 2. Nf3 {[%clk 0:02:59]}  Nc6 {[%clk 0:03:01]} 3. Bb5 {[%clk 0:02:58]}  Nf6 {[%clk 0:03:01]} 4. O-O {[%clk 0:02:52]}  Nxe4 {[%clk 0:03:01]} 5. Re1 {[%clk 0:02:52]}  Nd6 {[%clk 0:03:01]} 6. Nxe5 {[%clk 0:02:52]}  Be7 {[%clk 0:03:01]} 7. Bf1 {[%clk 0:02:50]}  Nxe5 {[%clk 0:03:01]} 8. Rxe5 {[%clk 0:02:48]}  O-O {[%clk 0:03:02]} 9. Nc3 {[%clk 0:02:47]}  Ne8 {[%clk 0:03:00]} 10. Nd5 {[%clk 0:02:44]}  Bd6 {[%clk 0:02:56]} 11. Re1 {[%clk 0:02:43]}  c6 {[%clk 0:02:56]} 12. Ne3 {[%clk 0:02:41]}  Bc7 {[%clk 0:02:55]} 13. Nf5 {[%clk 0:02:40]}  d5 {[%clk 0:02:53]} 14. Ne7+ {[%clk 0:02:40]}  Kh8 {[%clk 0:02:53]} 15. Nxc8 {[%clk 0:02:40]}  Rxc8 {[%clk 0:02:53]} 16. d4 {[%clk 0:02:35]}  Nf6 {[%clk 0:02:52]} 17. Bd3 {[%clk 0:02:23]}  Qd6 {[%clk 0:02:49]} 18. g3 {[%clk 0:02:20]}  Rce8 {[%clk 0:02:48]} 19. Bf4 {[%clk 0:02:08]}  Qd7 {[%clk 0:02:48]} 20. Bxc7 {[%clk 0:02:03]}  Qxc7 {[%clk 0:02:49]} 21. Qf3 {[%clk 0:02:02]}  Rxe1+ {[%clk 0:02:33]} 22. Rxe1 {[%clk 0:02:01]}  Re8 {[%clk 0:02:33]} 23. Rxe8+ {[%clk 0:01:45]}  Nxe8 {[%clk 0:02:34]} 24. Qe3 {[%clk 0:01:45]}  Nf6 {[%clk 0:02:32]} 25. Qe5 {[%clk 0:01:42]}  Qxe5 {[%clk 0:02:25]} 26. dxe5 {[%clk 0:01:41]}  Nd7 {[%clk 0:02:19]} 27. f4 {[%clk 0:01:41]}  Kg8 {[%clk 0:02:19]} 28. Kf2 {[%clk 0:01:36]}  g6 {[%clk 0:02:16]} 29. Ke3 {[%clk 0:01:34]}  Kf8 {[%clk 0:02:15]} 30. c4 {[%clk 0:01:33]}  dxc4 {[%clk 0:02:11]} 31. Bxc4 {[%clk 0:01:33]}  Ke7 {[%clk 0:02:11]} 32. b4 {[%clk 0:01:30]}  f6 {[%clk 0:02:11]} 33. Ke4 {[%clk 0:01:23]}  b6 {[%clk 0:01:19]} 34. g4 {[%clk 0:01:12]}  a5 {[%clk 0:01:03]} 35. a3 {[%clk 0:01:10]}  axb4 {[%clk 0:01:02]} 36. axb4 {[%clk 0:01:09]}  fxe5 {[%clk 0:00:58]} 37. fxe5 {[%clk 0:01:08]}  Nf8 {[%clk 0:00:59]} 38. g5 {[%clk 0:00:55]}  Ne6 {[%clk 0:00:51]} 39. h4 {[%clk 0:00:53]}  Kf7 {[%clk 0:00:49]} 40. b5 {[%clk 0:00:50]}  cxb5 {[%clk 0:00:44]} 41. Bxb5 {[%clk 0:00:49]}  Nc7 {[%clk 0:00:44]} 42. Bc4+ {[%clk 0:00:49]}  Ne6 {[%clk 0:00:41]} 43. Kd5 {[%clk 0:00:45]}  Ke7 {[%clk 0:00:38]} 44. Kc6 {[%clk 0:00:37]}  Nd8+ {[%clk 0:00:32]} 45. Kxb6 {[%clk 0:00:33]}  Nf7 {[%clk 0:00:33]} 46. Bxf7 {[%clk 0:00:32]}  Kxf7 {[%clk 0:00:34]} 47. Kc5 {[%clk 0:00:31]}  Ke6 {[%clk 0:00:34]} 48. Kd4 {[%clk 0:00:31]}  Kf5 {[%clk 0:00:28]} 49. Kd5 {[%clk 0:00:31]}  Kg4 {[%clk 0:00:28]} 50. e6 {[%clk 0:00:31]}  Kxh4 {[%clk 0:00:29]} 51. e7 {[%clk 0:00:30]}  Kxg5 {[%clk 0:00:30]} 52. e8=Q {[%clk 0:00:29]}  h5 {[%clk 0:00:31]} 53. Ke4 {[%clk 0:00:28]}  h4 {[%clk 0:00:24]} 54. Kf3 {[%clk 0:00:25]} 1-0


[Site "https://www.chess.com"]